bitfinex/quotes_ETHUSD_20240822
["timestamp","ask_amount","ask_price","bid_price","bid_amount"]
[1724328315545,0.55,2643.1,2642.4,3.0]
[1724328315769,0.55,2643.1,2642.4,4.40509154]
[1724328316255,0.55,2643.1,2642.4,4.85274693]
[1724328318267,0.55,2643.1,2642.4,3.44765539]
[1724328318674,0.55,2643.1,2642.4,0.44765539]
[1724328319154,0.55,2643.1,2642.1,7.48477]
[1724328319155,5.673,2643.0,2642.1,3.44765539]
[1724328319366,0.55,2642.9,2642.1,0.44765539]
[1724328319575,0.55,2642.9,2642.1,2.03688977]
[1724328319887,0.55,2642.9,2642.1,9.28808977]
[1724328321391,0.55,2642.9,2642.2,0.44765539]
[1724328324369,5.673,2642.8,2642.2,0.44765539]
[1724328324697,0.55,2642.7,2642.2,0.44765539]
[1724328326159,5.673,2642.8,2642.2,0.44765539]
[1724328328915,5.673,2642.8,2642.0,6.785]
[1724328328916,5.673,2642.8,2642.0,3.0]
[1724328330221,5.673,2642.8,2641.7,7.0005]
[1724328330368,5.6828,2642.6,2641.7,7.0005]
[1724328330566,5.6828,2642.6,2641.7,8.527678]
[1724328330567,0.55,2642.5,2641.7,8.527678]
[1724328334264,5.6828,2642.4,2641.7,1.527178]
[1724328334603,5.6828,2642.4,2641.6,3.0]
[1724328334604,0.55,2642.3,2641.6,3.0]
[1724328334909,5.6828,2642.6,2641.7,7.50908328]
[1724328335322,0.55,2642.5,2641.7,7.50908328]
[1724328335523,0.55,2642.5,2641.8,1.80801633]
[1724328336196,5.6828,2642.6,2641.8,6.01220118]
[1724328336390,5.6828,2642.6,2641.9,7.2315]
[1724328336847,5.6828,2642.6,2641.9,11.01663]
[1724328338222,5.6828,2642.9,2641.9,11.01663]
[1724328338458,0.55,2642.8,2641.9,7.2315]
[1724328339694,2.13555826,2642.8,2641.9,7.2315]
[1724328340411,0.55,2642.8,2642.0,1.101679]
[1724328341394,2.13555826,2642.8,2642.0,1.101679]
[1724328343736,1.58555826,2642.7,2642.0,1.101679]
[1724328343945,0.55,2642.6,2642.0,1.101679]
[1724328344442,12.9928,2642.9,2642.3,7.1697]
[1724328344443,7.31,2642.9,2642.3,7.1697]
[1724328344619,1.58555826,2643.0,2642.4,1.17111231]
[1724328344989,8.89555826,2643.1,2642.4,1.095434]
[1724328345142,2.37457509,2643.5,2642.6,7.1534]
[1724328345143,1.58555826,2643.3,2642.6,7.1534]
[1724328346019,1.58555826,2643.4,2642.6,7.1534]
[1724328346217,1.58555826,2643.4,2642.7,0.71534]
[1724328347433,9.29037054,2643.5,2642.8,7.00836769]
[1724328347434,8.89555826,2643.5,2642.8,7.00836769]
[1724328347634,1.98037054,2643.6,2642.9,6.9327]
[1724328347635,1.58555826,2643.6,2642.9,6.9327]
[1724328347838,1.58555826,2643.6,2642.9,8.46183777]
[1724328348144,1.58555826,2643.7,2642.9,8.46183777]
[1724328348343,1.58555826,2643.6,2642.9,8.46183777]
[1724328348649,1.58555826,2643.6,2643.0,0.07566032]
[1724328348950,1.98037054,2643.7,2643.0,0.07566032]
[1724328348951,1.58555826,2643.7,2643.1,7.41176025]
[1724328349152,21.58037054,2643.8,2643.1,7.41176025]
[1724328349153,8.89555826,2643.8,2643.1,11.11953]
[1724328349646,1.58555826,2643.8,2643.1,7.3361]
[1724328349812,1.58555826,2643.9,2643.3,11.11924]
[1724328350007,1.98037054,2644.1,2643.4,0.07564717]
[1724328350008,1.58555826,2644.0,2643.4,0.07564717]
[1724328350827,1.58555826,2644.1,2643.5,0.07564738]
[1724328351027,1.58555826,2644.1,2643.3,3.78313]
[1724328351028,1.58555826,2644.3,2643.7,7.0024]
[1724328351311,1.58555826,2644.4,2643.7,8.0809]
[1724328351562,1.58555826,2644.3,2643.7,7.0024]
[1724328351853,1.58555826,2644.3,2643.4,3.0]
[1724328351854,1.58555826,2644.1,2643.4,10.0024]
[1724328352012,1.58555826,2644.1,2643.4,7.0024]
[1724328352207,1.58555826,2644.1,2643.5,3.0]
[1724328352939,0.55,2644.0,2643.5,3.0]
[1724328353111,2.13555826,2644.0,2643.4,7.0024]
[1724328353311,1.58555826,2643.9,2643.4,7.0024]
[1724328353532,0.55,2643.8,2643.2,9.8851]
[1724328353734,0.55,2643.8,2643.3,3.0]
[1724328354351,0.55,2643.8,2643.2,7.31484089]
[1724328354932,1.58555826,2644.1,2643.3,3.78312]
[1724328355159,0.55,2644.0,2643.3,3.78312]
[1724328355341,0.55,2644.0,2643.4,1.48811309]
[1724328356064,0.55,2644.0,2643.2,11.09809089]
[1724328356230,0.55,2644.0,2643.2,11.09804089]
[1724328356431,2.13555826,2644.0,2643.2,7.31484089]
[1724328356856,2.13555826,2644.0,2643.2,11.09807089]
[1724328357027,2.13555826,2644.0,2643.2,7.31484089]
[1724328357385,2.13555826,2644.0,2643.3,1.10982409]
[1724328357524,0.55,2644.0,2643.3,1.10982409]
[1724328357730,0.55,2644.0,2643.4,7.1424]
[1724328358269,7.31,2644.1,2643.4,10.9254]
[1724328358480,7.31,2644.1,2643.5,3.78284]
[1724328358626,7.31,2644.1,2643.7,7.1506]
[1724328363433,7.31,2644.4,2643.7,7.1506]
[1724328363669,0.55,2644.3,2643.7,7.1506]
[1724328365436,7.31,2644.4,2643.7,10.93315]
[1724328365746,7.31,2644.4,2643.8,1.093315]
[1724328366442,7.31,2644.4,2643.7,7.1506]
[1724328369146,0.55,2644.3,2643.7,7.1506]
[1724328370062,7.31,2644.4,2643.7,7.1506]
[1724328370377,7.31,2644.4,2643.8,7.2005]
[1724328372563,0.55,2644.3,2643.8,7.2005]
[1724328373283,0.55,2644.3,2643.6,6.9993]
[1724328378252,0.55,2644.3,2643.5,3.0]
[1724328378584,0.55,2644.3,2643.4,6.6316]
[1724328379286,5.6369,2644.2,2643.4,6.6316]
[1724328379485,0.55,2644.1,2643.4,6.6316]
[1724328382697,2.13555826,2644.1,2643.2,10.1881]
[1724328382850,7.22245826,2644.0,2643.2,7.1881]
[1724328383047,7.22245826,2644.0,2642.7,4.18938641]
[1724328383048,2.13555826,2643.9,2642.8,7.1881]
[1724328383304,0.55,2643.9,2642.9,7.1881]
[1724328383587,2.13555826,2643.9,2642.9,7.1881]
[1724328384371,2.13555826,2643.9,2643.0,3.0]
[1724328384595,1.58555826,2643.8,2643.0,3.0]
[1724328384758,0.55,2643.7,2643.0,3.0]
[1724328386559,2.13555826,2643.7,2643.0,3.0]
[1724328386799,2.13555826,2643.7,2643.0,4.45641979]
[1724328387511,5.6369,2643.6,2643.0,3.0]
[1724328387874,5.6369,2643.6,2642.9,7.1881]
[1724328387875,2.13555826,2643.5,2642.9,7.1881]
[1724328388027,0.55,2643.5,2642.9,7.1881]
[1724328388539,1.58555826,2643.6,2642.9,7.1881]
[1724328388715,1.97414064,2643.7,2643.2,3.78321]
[1724328388716,1.58555826,2643.7,2643.2,3.78321]
[1724328389073,1.58555826,2643.9,2643.5,6.8965]
[1724328389331,7.31,2644.1,2643.6,6.8965]
[1724328389533,7.31,2644.1,2643.6,7.964435]
[1724328390028,8.89555826,2644.1,2643.6,7.964435]
[1724328390527,7.31,2644.1,2643.8,6.7089]
[1724328390683,1.58555826,2644.3,2643.8,6.7089]
[1724328390879,1.58555826,2644.3,2643.8,8.5431035]
[1724328391667,1.58555826,2644.3,2643.9,7.3331]
[1724328394629,9.2911397,2644.4,2643.9,7.3331]
[1724328394630,1.58555826,2644.2,2643.9,7.3331]
[1724328395152,1.9811397,2644.0,2643.7,6.6421]
[1724328395379,1.58565072,2643.9,2643.2,6.8228]
[1724328395551,1.58565072,2643.9,2643.3,1.060615]
[1724328395918,1.58565072,2643.9,2643.4,6.8228]
[1724328396113,1.58565072,2644.0,2643.4,6.8228]
[1724328396315,1.58565072,2644.0,2643.4,10.6058]
[1724328396514,1.58565072,2644.0,2643.5,7.2438]
[1724328396751,1.58565072,2644.0,2643.5,8.8308545]
[1724328397315,1.9819458,2644.1,2643.5,8.8308545]
[1724328397316,1.58565072,2644.1,2643.5,8.8308545]
[1724328397743,1.58565072,2644.1,2643.6,6.8296]
[1724328398990,7.31,2644.4,2643.6,6.8296]
[1724328398991,1.58565072,2644.0,2643.6,6.8296]
[1724328399177,1.58565072,2644.1,2643.6,6.8296]
[1724328399349,1.58565072,2644.0,2643.6,6.8296]
[1724328399730,1.58565072,2644.1,2643.6,6.8296]
[1724328401289,1.58565072,2644.1,2643.6,7.890853]
[1724328402202,1.58565072,2644.1,2643.6,6.8296]
[1724328404445,1.58565072,2644.1,2643.6,10.61223]
[1724328404644,1.58565072,2644.2,2643.7,7.1875]
[1724328407351,1.58565072,2644.1,2643.7,7.1875]
[1724328407892,1.58565072,2644.2,2643.7,7.1875]
[1724328408438,1.58565072,2644.1,2643.7,7.1875]
[1724328409181,1.58565072,2644.2,2643.7,7.1875]
[1724328410036,1.58565072,2644.2,2643.9,6.6639]
[1724328410256,1.58565072,2644.3,2643.9,6.6639]
[1724328412203,1.58565072,2644.3,2644.2,0.3]
[1724328417808,1.98142484,2644.4,2644.2,0.3]
[1724328418039,1.98142484,2644.3,2644.2,0.3]
[1724328418744,0.55,2644.3,2644.2,0.3]
[1724328419107,1.98146136,2644.3,2644.2,0.3]
[1724328419348,2.53146136,2644.3,2644.2,0.3]
[1724328419687,2.53138659,2644.3,2644.2,0.3]
[1724328420322,1.98138659,2644.3,2644.2,4.6908]
[1724328420496,2.37766391,2644.6,2644.2,4.6908]
[1724328420497,1.98138659,2644.4,2644.2,4.6908]
[1724328420702,1.98138659,2644.3,2644.2,4.6908]
[1724328420903,0.55,2644.3,2644.2,0.3]
[1724328421422,0.55,2644.4,2644.2,0.3]
[1724328421797,2.92766391,2644.4,2644.2,0.3]
[1724328422605,3.78171,2644.3,2644.2,0.3]
[1724328422812,0.55,2644.3,2644.2,0.3]
[1724328423388,2.9279572,2644.3,2644.2,0.3]
[1724328423693,2.3779572,2644.3,2644.2,0.3]
[1724328423956,1.98130312,2644.3,2644.2,0.3]
[1724328424432,1.98130312,2644.4,2644.2,0.3]
[1724328424732,1.98130312,2644.3,2644.2,0.3]
[1724328425189,1.58497211,2644.3,2644.2,4.5502]
[1724328425389,1.98130312,2644.4,2644.2,4.5502]
[1724328425592,1.58500536,2644.3,2644.2,4.5502]
[1724328425836,1.98130312,2644.4,2644.2,4.5502]
[1724328426005,1.58500539,2644.3,2644.2,4.5502]
[1724328426207,1.58498693,2644.3,2644.2,4.5502]
[1724328426527,1.98130312,2644.3,2644.2,4.5502]
[1724328426898,1.98130312,2644.4,2644.2,4.5502]
[1724328428071,1.58504129,2644.4,2644.2,5.06522]
[1724328431202,9.6879572,2644.8,2644.2,5.06522]
[1724328431203,1.58504129,2644.6,2644.2,5.06522]
[1724328431828,1.58504129,2644.5,2644.2,5.06522]
[1724328432845,1.58504129,2644.5,2644.3,0.566522]
[1724328433044,1.58504129,2644.6,2644.4,4.3912]
[1724328433291,1.58504129,2644.5,2644.4,4.3912]
[1724328434263,1.98223144,2644.6,2644.4,4.3912]
[1724328434478,1.5867771,2644.5,2644.4,4.3912]
[1724328434657,1.5867814,2644.5,2644.4,4.3912]
[1724328436363,1.98223144,2644.6,2644.4,4.3912]
[1724328436975,1.58660208,2644.5,2644.4,4.3912]
[1724328437172,1.98223144,2644.6,2644.4,4.3912]
[1724328437579,1.58650148,2644.5,2644.4,4.3912]
[1724328438299,1.98223144,2644.6,2644.4,4.3912]
[1724328438300,1.58650148,2644.6,2644.4,4.3912]
[1724328438854,1.58650148,2644.5,2644.4,4.3912]
[1724328439997,1.58650148,2644.6,2644.4,4.3912]
[1724328444306,1.98223144,2644.7,2644.4,4.3912]
[1724328444307,1.58650148,2644.5,2644.4,4.3912]
[1724328445333,1.58650148,2644.6,2644.4,4.3912]
[1724328447593,1.58650148,2644.7,2644.4,4.3912]
[1724328449797,1.58650148,2644.6,2644.4,4.3912]
[1724328450631,1.58650148,2644.7,2644.4,4.3912]
[1724328451380,1.58650148,2644.6,2644.4,4.3912]
[1724328452140,1.98213513,2644.7,2644.4,4.3912]
[1724328452141,1.58650148,2644.7,2644.4,4.3912]
[1724328453595,1.58650148,2644.6,2644.4,4.3912]
[1724328455827,1.58650148,2644.7,2644.4,4.3912]
[1724328458239,1.58650148,2644.6,2644.4,4.3912]
[1724328458438,1.58650148,2644.5,2644.4,4.3912]
[1724328458737,2.37839943,2644.8,2644.2,4.9942]
[1724328458941,1.5858606,2644.3,2644.2,4.9942]
[1724328459237,1.98232575,2644.3,2644.2,4.9942]
[1724328459400,1.98232575,2644.4,2644.2,4.9942]
[1724328460051,1.98232575,2644.3,2644.2,4.9942]
[1724328460602,1.98232575,2644.3,2644.2,0.3]
[1724328460805,0.55,2644.3,2644.2,0.3]
[1724328463015,2.53207597,2644.3,2644.2,0.3]
[1724328464673,0.55,2644.3,2644.2,0.3]
[1724328464982,0.55,2644.4,2644.2,0.3]
[1724328467164,2.37847684,2644.3,2644.2,0.3]
[1724328467518,0.55,2644.3,2644.2,0.3]
[1724328467674,4.33171,2644.3,2644.2,0.3]
[1724328467884,7.10659964,2644.3,2644.2,0.3]
[1724328468110,4.33171,2644.3,2644.2,0.3]
[1724328468313,6.55629014,2644.3,2644.2,0.3]
[1724328468601,3.78171,2644.3,2644.2,0.3]
[1724328468960,6.55630321,2644.3,2644.2,0.3]
[1724328470504,7.10630321,2644.3,2643.5,4.4965]
[1724328470798,1.58479659,2643.7,2643.5,4.4965]
[1724328471169,2.13479659,2643.6,2643.5,4.4965]
[1724328472387,1.58479659,2643.7,2643.5,4.4965]
[1724328473380,1.58479659,2643.8,2643.5,4.4965]
[1724328473568,1.98100345,2643.9,2643.5,4.4965]
[1724328473569,1.58479659,2643.7,2643.5,4.4965]
[1724328473907,1.58479659,2643.8,2643.5,4.4965]
[1724328476304,1.58479659,2643.9,2643.5,4.4965]
[1724328476483,0.55,2643.8,2643.5,4.4965]
[1724328477812,2.13479659,2643.8,2643.5,4.4965]
[1724328478029,0.55,2643.8,2643.5,4.4965]
[1724328478371,2.13479659,2643.8,2643.5,4.4965]
[1724328480542,1.287,2643.6,2643.5,4.4965]
[1724328481008,1.287,2643.7,2643.5,4.4965]
[1724328481395,8.89479659,2644.1,2643.5,4.94615]
[1724328481597,10.18179659,2644.1,2643.5,4.94615]
[1724328481830,8.597,2644.1,2643.5,4.94615]
[1724328482248,7.31,2644.1,2643.6,3.0336]
[1724328482548,7.31,2644.1,2643.8,3.0336]
[1724328485121,8.89479659,2644.5,2643.8,3.10924373]
[1724328485448,8.89479659,2644.5,2643.8,3.0336]
[1724328485667,7.31,2644.5,2644.0,2.9103]
[1724328486920,8.89479659,2644.5,2644.0,2.9103]
[1724328487451,1.58479659,2644.4,2644.0,3.2103]
[1724328488831,8.89479659,2644.5,2644.0,3.2103]
[1724328489024,1.58479659,2644.4,2644.0,3.2103]
[1724328489254,8.89479659,2644.5,2644.0,3.2103]
[1724328490419,1.58479659,2644.4,2644.0,3.2103]
[1724328491056,8.89479659,2644.5,2644.0,3.2103]
[1724328492459,1.58479659,2644.4,2644.0,3.2103]
[1724328493317,7.31,2644.5,2644.0,3.53133]
[1724328493318,8.89479659,2644.5,2644.0,3.53133]
[1724328493523,7.31,2644.5,2644.0,3.53133]
[1724328494455,1.58479659,2644.6,2644.0,3.53133]
[1724328495029,1.58479659,2644.7,2644.2,3.78184]
[1724328495251,14.66382748,2645.1,2644.3,3.72688762]
[1724328495252,1.58479659,2644.9,2644.3,3.72688762]
[1724328495435,1.58479659,2644.9,2644.4,3.0583]
[1724328495640,9.28818957,2645.1,2644.4,3.0583]
[1724328495641,1.58479659,2645.0,2644.4,3.0583]
[1724328495850,1.58479659,2645.0,2644.4,3.43307876]
[1724328496022,1.58479659,2644.9,2644.4,3.0583]
[1724328496216,1.58479659,2644.8,2644.4,3.0583]
[1724328496435,1.58479659,2644.9,2644.4,3.0583]
[1724328497175,1.58479659,2644.8,2644.4,3.0583]
[1724328498264,1.58479659,2644.9,2644.4,3.0583]
[1724328500528,1.58479659,2644.8,2644.4,3.0583]
[1724328501969,1.58479659,2644.9,2644.4,3.0583]
[1724328502267,1.58479659,2644.8,2644.4,3.0583]
[1724328502431,1.58479659,2644.9,2644.4,3.0583]
[1724328502632,1.58479659,2644.8,2644.4,3.0583]
[1724328503381,1.58479659,2644.9,2644.4,3.36413]
[1724328503684,1.58479659,2644.8,2644.4,3.0583]
[1724328505371,1.58479659,2644.9,2644.4,3.0583]
[1724328505774,1.58479659,2644.8,2644.4,3.0583]
[1724328506483,1.58479659,2644.9,2644.4,3.0583]
[1724328508906,2.87079659,2644.9,2644.4,3.0583]
[1724328510911,1.286,2644.7,2644.4,3.0583]
[1724328511264,2.87079659,2644.9,2644.4,3.0583]
[1724328512114,1.286,2644.9,2644.4,3.0583]
[1724328515415,1.286,2644.9,2644.4,3.36413]
[1724328515715,2.37256356,2645.4,2644.4,3.36413]
[1724328515716,1.58479659,2645.4,2644.8,3.78089]
[1724328515950,7.31,2645.6,2645.1,1.286]
[1724328516221,1.58479659,2645.7,2645.2,2.468]
[1724328516517,2.87079659,2645.7,2645.2,2.468]
[1724328516723,1.286,2645.7,2645.2,2.468]
[1724328517292,1.58479659,2645.8,2645.2,2.468]
[1724328517630,1.286,2645.7,2645.2,2.468]
[1724328518440,1.58479659,2645.8,2645.2,2.468]
[1724328518606,0.55,2645.7,2645.2,2.468]
[1724328519634,1.13479659,2645.8,2645.2,2.468]
[1724328520043,1.97607874,2645.7,2645.2,2.468]
[1724328520244,10.395,2645.9,2645.2,2.468]
[1724328520245,1.97607874,2645.8,2645.2,2.468]
[1724328521244,1.97607874,2645.7,2645.2,2.468]
[1724328521433,1.97607874,2645.8,2645.2,2.468]
[1724328521632,2.52558302,2645.7,2645.2,2.468]
[1724328523355,1.97558302,2645.6,2645.2,2.468]
[1724328523507,0.55,2645.5,2645.2,2.468]
[1724328524244,2.52558302,2645.5,2645.2,2.468]
[1724328525634,1.97558302,2645.4,2645.2,2.468]
[1724328526010,2.52558302,2645.3,2645.2,2.468]
[1724328526315,2.52749771,2645.3,2645.2,2.468]
[1724328526515,0.55,2645.3,2645.2,2.468]
[1724328528653,2.92299725,2645.3,2645.2,2.468]
[1724328531015,0.55,2645.3,2645.2,2.468]
[1724328531448,13.96608844,2645.3,2645.2,2.468]
[1724328531615,11.19556,2645.3,2645.2,2.468]
[1724328532712,13.96608844,2645.3,2645.2,2.468]
[1724328533151,11.19556,2645.3,2645.2,2.468]
[1724328533635,13.9665387,2645.3,2645.2,2.468]
[1724328533825,10.1862587,2645.3,2645.2,2.468]
[1724328534926,3.635,2645.3,2645.2,2.468]
[1724328535560,0.55,2645.3,2645.2,2.468]
[1724328535714,6.5510887,2645.5,2645.2,2.468]
[1724328535715,3.55,2645.4,2645.2,2.468]
[1724328537270,6.32174083,2645.4,2645.2,2.468]
[1724328537754,3.55,2645.4,2645.2,2.768]
[1724328538142,6.32174083,2645.4,2645.2,2.768]
[1724328540606,1.286,2645.3,2645.2,2.768]
[1724328540779,1.836,2645.3,2645.2,2.768]
[1724328541781,1.836,2645.3,2645.2,3.068]
[1724328544811,5.61628,2645.3,2645.2,3.068]
[1724328545003,1.836,2645.3,2645.2,3.068]
[1724328545896,5.61628,2645.3,2645.2,3.3819]
[1724328546272,8.38802083,2645.3,2645.2,3.3819]
[1724328546915,12.16830083,2645.3,2645.2,3.3819]
[1724328547080,9.79125362,2645.3,2645.2,3.3819]
[1724328547616,3.78128,2644.7,2643.5,2.3212]
[1724328547816,3.78128,2644.7,2643.4,7.45]
[1724328547817,1.286,2644.1,2643.7,2.3212]
[1724328547982,2.87114822,2644.3,2643.7,2.75768891]
[1724328548180,1.58514822,2644.3,2643.8,2.75768891]
[1724328548386,1.58514822,2644.4,2643.9,2.3212]
[1724328548717,1.58514822,2644.4,2644.1,2.3212]
[1724328548913,1.58514822,2644.4,2644.3,2.3212]
[1724328549099,1.58514822,2644.5,2644.3,2.3212]
[1724328549413,3.66328983,2644.9,2644.3,2.3212]
[1724328549414,1.58514822,2644.7,2644.3,2.3212]
[1724328551626,1.58514822,2644.6,2644.3,2.3212]
[1724328552321,1.58514822,2644.5,2644.3,2.3212]
[1724328554905,1.58514822,2644.6,2644.3,2.3212]
[1724328556287,1.58514822,2644.5,2644.3,2.3212]
[1724328557516,1.58514822,2644.6,2644.3,2.3212]
[1724328558705,1.58514822,2644.5,2644.3,2.3212]
[1724328559246,1.58514822,2644.7,2644.3,2.3212]
[1724328559545,1.58514822,2644.6,2644.3,2.3212]
[1724328559753,1.58514822,2644.6,2644.3,2.55332]
[1724328560742,1.58514822,2644.6,2644.3,2.3212]
[1724328561049,2.92654165,2644.5,2644.3,2.3212]
[1724328562240,0.55,2644.5,2644.3,2.3212]
[1724328562440,1.98011693,2644.4,2644.3,2.3212]
[1724328562837,1.98009064,2644.4,2644.3,2.3212]
[1724328563443,2.37610877,2644.6,2644.3,2.3212]
[1724328564419,6.5531269,2644.8,2644.3,2.3212]
[1724328564420,2.37610877,2644.5,2644.3,2.3212]
[1724328564618,6.5531269,2644.8,2644.3,2.3212]
[1724328564619,2.87610877,2644.4,2644.3,2.3212]
[1724328567048,4.28157,2644.4,2644.3,2.3212]
[1724328567247,6.65864225,2644.4,2644.3,2.3212]
[1724328567448,2.87707225,2644.4,2644.3,2.3212]
[1724328567644,2.87697869,2644.4,2644.3,2.3212]
[1724328569327,0.5,2644.4,2644.3,2.3212]
[1724328571668,2.87684717,2644.4,2644.3,2.3212]
[1724328571965,0.5,2644.4,2644.3,2.3212]
[1724328572571,2.87663817,2644.4,2644.3,2.3212]
[1724328572946,0.5,2644.4,2644.3,2.3212]
[1724328573836,3.2731418,2644.4,2644.3,2.3212]
[1724328574064,0.5,2644.4,2644.3,2.3212]
[1724328580188,2.8751782,2644.4,2644.3,2.3212]
[1724328580749,2.87509287,2644.4,2644.3,2.3212]
[1724328581962,0.5,2644.4,2644.3,2.3212]
[1724328582561,4.16205155,2644.4,2644.3,2.3212]
[1724328583587,1.787,2644.4,2644.3,2.3212]
[1724328585505,2.76983415,2644.5,2644.3,2.3212]
[1724328585798,1.5835114,2644.4,2644.3,2.3212]
[1724328586149,1.5835114,2644.5,2644.3,2.3212]
[1724328586479,2.8705114,2644.5,2644.3,2.3212]
[1724328586953,1.5835114,2644.4,2644.3,2.3212]
[1724328587154,2.8705114,2644.5,2644.3,2.3212]
[1724328587354,1.5835114,2644.4,2644.3,2.3212]
[1724328588189,2.8705114,2644.5,2644.3,2.3212]
[1724328588487,1.5835114,2644.4,2644.3,2.3212]
[1724328596567,2.37702712,2644.7,2644.3,2.3212]
[1724328598024,6.86872,2645.0,2644.3,2.3212]
[1724328598310,0.55,2644.9,2644.3,2.3212]
[1724328600792,1.98157839,2644.5,2644.3,2.3212]
[1724328601682,1.98157839,2644.5,2644.3,2.55332]
[1724328604574,1.98157839,2644.5,2644.3,2.85332]
[1724328605383,1.98157839,2644.5,2644.3,2.6212]
[1724328605813,1.58492834,2644.5,2644.3,2.6212]
[1724328606808,0.0133205,2644.6,2644.3,2.6212]
[1724328606809,1.58492834,2644.4,2644.3,2.6212]
[1724328608610,2.87192834,2644.4,2644.3,0.6]
[1724328608834,2.87192834,2644.4,2644.3,2.9692]
[1724328609389,1.287,2644.4,2644.3,2.9692]
[1724328609581,1.58492834,2644.5,2644.3,0.6]
[1724328609783,1.58492834,2644.5,2644.4,2.4409]
[1724328610203,2.88524884,2644.6,2644.4,2.4409]
[1724328610512,1.58492834,2644.5,2644.4,2.4409]
[1724328611016,2.88524884,2644.6,2644.4,2.4409]
[1724328612118,1.58492834,2644.5,2644.4,2.4409]
[1724328612691,2.88524884,2644.6,2644.4,2.4409]
[1724328612899,2.88524884,2644.6,2644.4,2.7409]
[1724328613621,1.58492834,2644.5,2644.4,2.7409]
[1724328613824,0.55,2644.5,2644.4,2.7409]
[1724328616982,0.55,2644.5,2644.4,3.0409]
[1724328617359,4.33143,2644.5,2644.4,3.0409]
[1724328618058,7.10459057,2644.5,2644.4,3.0409]
[1724328618414,10.19359057,2644.5,2644.4,3.0409]
[1724328620329,10.58857143,2644.5,2644.4,3.0409]
[1724328621329,10.58857143,2644.5,2644.4,3.3409]
[1724328622682,7.81541086,2644.5,2644.4,3.3409]
[1724328622883,11.59684086,2644.5,2644.4,0.9]
[1724328623086,17.87263679,2644.5,2644.4,0.9]
[1724328623383,17.87263679,2644.5,2642.6,4.13779646]
[1724328623384,3.78157,2644.4,2642.6,2.4828]
[1724328623540,1.58503695,2643.4,2642.7,2.4137]
[1724328623742,1.58503695,2643.2,2642.7,2.4137]
[1724328624248,1.98129618,2643.3,2642.7,2.4137]
[1724328624249,1.58503695,2643.1,2642.7,2.4137]
[1724328624575,1.58503695,2643.2,2642.7,2.4137]
[1724328625143,1.58503695,2643.1,2642.7,2.4137]
[1724328625941,1.58503695,2643.0,2642.7,2.4137]
[1724328626141,1.58503695,2642.9,2642.7,2.4137]
[1724328626444,1.58503695,2643.1,2642.7,2.4137]
[1724328626939,1.58503695,2643.2,2642.7,2.4137]
[1724328627134,0.55,2643.1,2642.7,2.4137]
[1724328628466,0.55,2643.2,2642.7,2.4137]
[1724328633815,2.13503695,2643.3,2642.7,2.4137]
[1724328633987,0.0133205,2643.0,2642.7,2.4137]
[1724328640662,7.56772,2642.8,2642.7,2.4137]
[1724328640846,9.70275695,2642.8,2642.7,2.4137]
[1724328641184,11.11772,2642.8,2642.7,2.4137]
[1724328641662,8.91152044,2642.8,2642.7,2.4137]
[1724328642221,12.69538044,2642.8,2642.7,2.4137]
[1724328642431,8.91152044,2642.8,2642.7,2.4137]
[1724328643060,12.69538044,2642.8,2642.7,2.4137]
[1724328643364,8.91152044,2642.8,2642.7,2.4137]
[1724328643535,12.69538044,2642.8,2642.7,2.4137]
[1724328644326,8.91152044,2642.8,2642.7,2.4137]
[1724328645039,5.91152044,2642.8,2642.7,2.4137]
[1724328645241,4.33386,2642.8,2642.7,2.4137]
[1724328646026,8.11772,2642.8,2642.7,2.4137]
[1724328646453,11.11772,2642.8,2642.7,2.4137]
[1724328646628,12.69538044,2642.8,2642.7,2.4137]
[1724328647527,11.11772,2642.8,2642.7,2.4137]
[1724328647735,12.69538044,2642.8,2642.7,2.4137]
[1724328647929,11.11772,2642.8,2642.7,2.4137]
[1724328648136,13.09055137,2642.8,2642.7,2.4137]
[1724328648577,13.09055137,2642.8,2641.3,3.093]
[1724328648578,3.78455,2642.4,2641.3,3.093]
[1724328648754,3.7843,2642.5,2641.3,3.093]
[1724328648755,3.78458,2642.3,2641.4,0.6093]
[1724328648941,11.0943,2642.5,2641.4,0.6093]
[1724328648942,3.78455,2642.4,2641.4,0.6093]
[1724328649133,3.78455,2642.4,2641.5,2.3253]
[1724328649533,7.31,2642.5,2641.7,2.3237]
[1724328649990,11.09431,2642.5,2641.7,2.3237]
[1724328650851,4.33445,2642.4,2641.7,2.3237]
[1724328651378,3.78466,2642.3,2641.7,2.3237]
[1724328651557,0.55,2642.2,2641.7,2.3237]
[1724328652132,7.31,2642.5,2641.9,3.093]
[1724328652358,7.31,2642.5,2642.0,2.2526]
[1724328653580,7.31,2642.5,2642.2,3.093]
[1724328653771,7.31,2642.5,2642.3,2.3493]
[1724328657754,12.66914329,2642.9,2642.3,2.3493]
[1724328657959,0.55,2642.8,2642.3,2.3493]
[1724328659891,4.33386,2642.8,2642.3,2.3493]
[1724328660288,5.90921329,2642.8,2642.3,2.3493]
[1724328660582,0.55,2642.8,2642.3,2.3493]
[1724328660792,4.33387,2642.8,2642.3,2.3493]
[1724328660995,5.90922329,2642.8,2642.3,2.3493]
[1724328661201,3.78428,2642.6,2642.3,2.3493]
[1724328661502,4.33433,2642.5,2642.3,2.3493]
[1724328662107,0.55,2642.5,2642.3,2.3493]
[1724328664272,4.33431,2642.5,2642.3,2.3493]
[1724328664598,5.90966329,2642.5,2642.3,2.3493]
[1724328665098,5.76013043,2642.4,2642.3,2.3493]
[1724328665257,9.54456043,2642.4,2642.3,2.3493]
[1724328665463,8.11886,2642.4,2642.3,2.3493]
[1724328667267,4.33443,2642.4,2642.3,2.3493]
[1724328668299,6.70527051,2642.4,2642.3,2.3493]